fUSD/lending_fUSD_20240514
["ID","MTS","AMOUNT","RATE_DAILY","PERIOD"]
[327035523,1715727056425,-464.98,0.00012992,2]
[327035524,1715727056434,-500.0,0.00012992,2]
[327035525,1715727056442,-500.0,0.00012992,2]
[327035526,1715727056460,-150.0,0.00012992,2]
[327035527,1715727056470,-403.78,0.00012992,2]
[327035528,1715727056479,-500.0,0.00012992,2]
[327035529,1715727056488,-551.56,0.00012992,2]
[327035530,1715727056498,-2752.32,0.00012992,2]
[327035531,1715727056507,-353.23,0.00012992,2]
[327035532,1715727056516,-500.0,0.00012992,2]
[327035533,1715727056525,-500.0,0.00012992,2]
[327035534,1715727056534,-500.0,0.00012992,2]
[327035535,1715727056543,-500.0,0.00012992,2]
[327035536,1715727056553,-500.0,0.00012992,2]
[327035537,1715727056562,-500.0,0.00012992,2]
[327035538,1715727056571,-518.85,0.00012992,2]
[327035539,1715727056580,-500.0,0.00012992,2]
[327035540,1715727056590,-500.0,0.00012992,2]
[327035541,1715727056599,-376.73645552,0.00012992,2]
[327035542,1715727056609,-500.0,0.00012992,2]
[327035543,1715727056618,-306.81914435,0.00012992,2]
[327035544,1715727056627,-517.29,0.00012992,2]
[327035545,1715727056636,-987.92620289,0.00012992,2]
[327035546,1715727056894,-351.94684962,0.00012992,2]
[327035578,1715728232029,-162.50319315,0.0001041,2]
[327035579,1715728232039,-294.91443649,0.00010411,2]
[327035580,1715728232052,-68.69556351,0.00010411,2]
[327035581,1715728232061,-200.0,0.00011,2]
[327035582,1715728232070,-651.82050629,0.00011399,2]
[327035583,1715728232081,-1314.50949371,0.00011399,2]
[327035584,1715728232091,-1795.59783904,0.00011399,2]
[327035585,1715728232102,-4002.19079221,0.00011399,2]
[327035586,1715728232113,-4401.12136875,0.00011399,2]
[327035587,1715728232122,-173.6,0.00011412,2]
[327035588,1715728232131,-250.0,0.00011489,2]
[327035589,1715728232141,-1000.0,0.00011489,2]
[327035590,1715728232150,-3472.69,0.00011495,2]
[327035591,1715728232159,-158.24,0.00011645,2]
[327035592,1715728232168,-169.44,0.00011691,2]
[327035593,1715728232178,-152.71,0.00011956,2]
[327035594,1715728232188,-499.99,0.00011956,2]
[327035595,1715728232197,-152.71,0.00011964,2]
[327035596,1715728232206,-152.71,0.00011971,2]
[327035597,1715728232215,-152.71,0.00011979,2]
[327035598,1715728232224,-152.71,0.00011986,2]
[327035599,1715728232234,-152.71,0.00011994,2]
[327035600,1715728232243,-19621.08328365,0.00012,2]
[327035601,1715728232252,-152.71,0.00012001,2]
[327035602,1715728232262,-152.71,0.00012009,2]
[327035603,1715728232271,-152.71,0.00012016,2]
[327035604,1715728232280,-10000.0,0.00012288,2]
[327035605,1715728232289,-168.99,0.00012715,2]
[327035607,1715728232298,-1000.0,0.00012776,2]
[327035609,1715728232308,-10000.0,0.00012776,2]
[327035611,1715728232317,-173.02267464,0.00012776,2]
[327035613,1715728232327,-442.08433795,0.00012866,2]
[327035615,1715728232336,-442.08433795,0.00012866,2]
[327035617,1715728232345,-442.08433795,0.00012866,2]
[327035619,1715728232355,-442.08433795,0.00012866,2]
[327035621,1715728232365,-442.08433795,0.00012866,2]
[327035623,1715728232375,-442.08433795,0.00012866,2]
[327035625,1715728232384,-442.08433795,0.00012866,2]
[327035626,1715728232394,-442.08433795,0.00012866,2]
[327035627,1715728232403,-442.08433795,0.00012866,2]
[327035628,1715728232412,-442.08433795,0.00012866,2]
[327035629,1715728232422,-442.08433795,0.00012866,2]
[327035630,1715728232431,-442.08433795,0.00012866,2]
[327035631,1715728232440,-442.08433795,0.00012866,2]
[327035632,1715728232451,-442.08433795,0.00012866,2]
[327035633,1715728232460,-442.08433795,0.00012866,2]
[327035634,1715728232469,-442.08433795,0.00012866,2]
[327035635,1715728232479,-442.08433795,0.00012866,2]
[327035636,1715728232490,-442.08433795,0.00012866,2]
[327035637,1715728232499,-442.08433795,0.00012866,2]
[327035638,1715728232508,-442.08433795,0.00012866,2]
[327035639,1715728232517,-442.08433795,0.00012866,2]
[327035640,1715728232528,-442.08433795,0.00012866,2]
[327035641,1715728232538,-442.08433795,0.00012866,2]
[327035642,1715728232549,-442.08433795,0.00012866,2]
[327035643,1715728232561,-442.08433795,0.00012866,2]
[327035644,1715728232570,-442.08433795,0.00012866,2]
[327035645,1715728232579,-442.08433795,0.00012866,2]
[327035646,1715728232590,-442.08433795,0.00012866,2]
[327035647,1715728232601,-442.08433795,0.00012866,2]
[327035648,1715728232612,-442.08433795,0.00012866,2]
[327035649,1715728232623,-160.68292263,0.00012866,2]
[327035650,1715728232632,-162.01,0.00012866,2]
[327035651,1715728232643,-153.35911803,0.00012869,2]
[327035652,1715728232653,-156.36648287,0.00012874,2]
[327035653,1715728232665,-520.28413075,0.00012874,2]
[327035654,1715728232675,-3058.56827206,0.00012875,2]
[327035655,1715728232686,-2014.75245949,0.00012875,2]
[327035656,1715728232697,-691.42,0.00012876,2]
[327035657,1715728232708,-691.42,0.00012876,2]
[327035658,1715728232724,-500.0,0.00012876,2]
[327035659,1715728232740,-500.0,0.00012876,2]
[327035660,1715728232752,-500.0,0.00012876,2]
[327035661,1715728232762,-500.0,0.00012876,2]
[327035662,1715728232771,-589.1,0.00012876,2]
[327035663,1715728232781,-589.1,0.00012876,2]
[327035664,1715728232790,-790.38,0.00012876,2]
[327035665,1715728232800,-790.38,0.00012876,2]
[327035666,1715728232811,-500.0,0.00012876,2]
[327035667,1715728232820,-500.0,0.00012876,2]
[327035668,1715728232829,-500.0,0.00012876,2]
[327035669,1715728232839,-500.0,0.00012876,2]
[327035670,1715728232848,-500.0,0.00012876,2]
[327035671,1715728232858,-500.0,0.00012876,2]
[327035672,1715728232867,-500.0,0.00012876,2]
[327035673,1715728232877,-429.91,0.00012876,2]
[327035674,1715728232886,-500.0,0.00012876,2]
[327035675,1715728232896,-500.0,0.00012876,2]
[327035676,1715728232906,-500.0,0.00012876,2]
[327035677,1715728232916,-500.0,0.00012876,2]
[327035678,1715728232925,-500.0,0.00012876,2]
[327035679,1715728232934,-500.0,0.00012876,2]
[327035680,1715728232944,-223.5,0.00012876,2]
[327035681,1715728232954,-291.98,0.00012876,2]
[327035682,1715728232963,-1594.63,0.00012876,2]
[327035683,1715728232972,-1594.63,0.00012876,2]
[327035684,1715728232982,-1594.63,0.00012876,2]
[327035685,1715728232992,-254.43490261,0.00012876,2]
[327035686,1715728233002,-500.0,0.00012876,2]
[327035687,1715728233011,-500.0,0.00012876,2]
[327035688,1715728233020,-500.0,0.00012876,2]
[327035689,1715728233031,-500.0,0.00012876,2]
[327035690,1715728233041,-570.93,0.00012876,2]
[327035691,1715728233051,-500.0,0.00012876,2]
[327035692,1715728233062,-500.0,0.00012876,2]
[327035693,1715728233071,-500.0,0.00012876,2]
[327035694,1715728233080,-418.92,0.00012876,2]
[327035695,1715728233089,-500.0,0.00012876,2]
[327035696,1715728233098,-482.76,0.00012876,2]
[327035697,1715728233106,-635.87,0.00012876,2]
[327035698,1715728233116,-500.0,0.00012876,2]
[327035699,1715728233126,-500.0,0.00012876,2]
[327035700,1715728233136,-500.0,0.00012876,2]
[327035701,1715728233147,-500.0,0.00012876,2]
[327035702,1715728233156,-500.0,0.00012876,2]
[327035703,1715728233440,-367.61,0.00012876,2]
[327035704,1715728233450,-177.39,0.00012876,2]
[327035705,1715728233459,-500.0,0.00012876,2]
[327035706,1715728233468,-500.0,0.00012876,2]
[327035707,1715728233478,-500.0,0.00012876,2]
[327035708,1715728233488,-500.0,0.00012876,2]
[327035709,1715728233497,-500.0,0.00012876,2]
[327035710,1715728233507,-500.0,0.00012876,2]
[327035711,1715728233516,-500.0,0.00012876,2]
[327035712,1715728233525,-500.0,0.00012876,2]
[327035713,1715728233535,-1351.12,0.00012876,2]
[327035714,1715728233544,-1351.12,0.00012876,2]
[327035715,1715728233555,-1351.12,0.00012876,2]
[327035716,1715728233564,-412.9,0.00012876,2]
[327035717,1715728233574,-500.0,0.00012876,2]
[327035718,1715728233583,-500.0,0.00012876,2]
[327035719,1715728233592,-172.39,0.00012876,2]
[327035720,1715728233601,-150.0,0.00012876,2]
[327035721,1715728233611,-150.0,0.00012876,2]
[327035722,1715728233619,-500.0,0.00012876,2]
[327035723,1715728233629,-500.0,0.00012876,2]
[327035724,1715728233638,-602.07,0.00012876,2]
[327035725,1715728233648,-602.07,0.00012876,2]
[327035726,1715728233657,-1343.93,0.00012876,2]
[327035727,1715728233668,-1343.93,0.00012876,2]
[327035728,1715728233679,-1343.93,0.00012876,2]
[327035729,1715728233688,-500.0,0.00012876,2]
[327035730,1715728233697,-595.83,0.00012876,2]
[327035731,1715728233706,-500.0,0.00012876,2]
[327035732,1715728233717,-500.0,0.00012876,2]
[327035733,1715728233726,-421.83,0.00012876,2]
[327035734,1715728233735,-552.14,0.00012876,2]
[327035735,1715728233744,-500.0,0.00012876,2]
[327035736,1715728233756,-500.0,0.00012876,2]
[327035737,1715728233766,-500.0,0.00012876,2]
[327035738,1715728233775,-1546.61,0.00012876,2]
[327035739,1715728233785,-1546.61,0.00012876,2]
[327035740,1715728233794,-1546.61,0.00012876,2]
[327035741,1715728233803,-500.0,0.00012876,2]
[327035742,1715728233813,-500.0,0.00012876,2]
[327035743,1715728233823,-500.0,0.00012876,2]
[327035744,1715728233832,-235.06,0.00012876,2]
[327035745,1715728233841,-500.0,0.00012876,2]
[327035746,1715728233851,-500.0,0.00012876,2]
[327035747,1715728233860,-558.42,0.00012876,2]
[327035748,1715728233870,-513.6,0.00012876,2]
[327035749,1715728233879,-500.0,0.00012876,2]
[327035750,1715728233889,-500.0,0.00012876,2]
[327035751,1715728233898,-339.4,0.00012876,2]
[327035752,1715728233908,-500.0,0.00012876,2]
[327035753,1715728233917,-644.30997656,0.00012876,2]
[327035754,1715728233926,-500.0,0.00012876,2]
[327035755,1715728233936,-282.3,0.00012876,2]
[327035756,1715728233945,-500.0,0.00012876,2]
[327035757,1715728233954,-500.0,0.00012876,2]
[327035758,1715728233964,-587.43161601,0.00012876,2]
[327035759,1715728233973,-500.0,0.00012876,2]
[327035760,1715728233983,-319.31,0.00012876,2]
[327035761,1715728233993,-500.0,0.00012876,2]
[327035762,1715728234003,-500.0,0.00012876,2]
[327035763,1715728234012,-336.77,0.00012876,2]
[327035764,1715728234023,-500.0,0.00012876,2]
[327035765,1715728234032,-500.0,0.00012876,2]
[327035766,1715728234041,-264.89,0.00012876,2]
[327035767,1715728234051,-532.68068116,0.00012876,2]
[327035768,1715728234061,-500.0,0.00012876,2]
[327035769,1715728234070,-402.14,0.00012876,2]
[327035770,1715728234079,-316.8,0.00012876,2]
[327035771,1715728234089,-500.0,0.00012876,2]
[327035772,1715728234098,-500.0,0.00012876,2]
[327035773,1715728234108,-500.0,0.00012876,2]
[327035774,1715728234117,-428.11,0.00012876,2]
[327035775,1715728234127,-1226.43,0.00012876,2]
[327035776,1715728234136,-1226.43,0.00012876,2]
[327035777,1715728234145,-226.22,0.00012876,2]
[327035778,1715728234154,-500.0,0.00012876,2]
[327035779,1715728234164,-630.0605305,0.00012876,2]
[327035780,1715728234173,-195.74,0.00012876,2]
[327035781,1715728234182,-500.0,0.00012876,2]
[327035782,1715728234192,-500.0,0.00012876,2]
[327035783,1715728234202,-500.0,0.00012876,2]
[327035784,1715728234211,-500.0,0.00012876,2]
[327035785,1715728234220,-500.0,0.00012876,2]
[327035786,1715728234230,-309.92169826,0.00012876,2]
[327035787,1715728234239,-500.0,0.00012876,2]
[327035788,1715728234248,-500.0,0.00012876,2]
[327035789,1715728234257,-532.74,0.00012876,2]
[327035790,1715728234267,-532.74,0.00012876,2]
[327035791,1715728234276,-656.52,0.00012876,2]
[327035792,1715728234285,-656.52,0.00012876,2]
[327035793,1715728234294,-500.0,0.00012876,2]
[327035794,1715728234304,-500.0,0.00012876,2]
[327035795,1715728234313,-500.0,0.00012876,2]
[327035796,1715728234323,-13328.63,0.00012876,2]
[327035797,1715728234332,-500.0,0.00012876,2]
[327035798,1715728234340,-500.0,0.00012876,2]
[327035799,1715728234350,-315.69,0.00012876,2]
[327035800,1715728234359,-500.0,0.00012876,2]
[327035801,1715728234368,-604.18,0.00012876,2]
[327035802,1715728234378,-604.31735166,0.00012876,2]
[327035803,1715728234387,-1029.34,0.00012876,2]
[327035804,1715728234396,-3511.5,0.00012876,2]
[327035805,1715728234406,-5474.96,0.00012876,2]
[327035806,1715728234415,-500.0,0.00012876,2]
[327035807,1715728234424,-500.0,0.00012876,2]
[327035808,1715728234434,-4065.11,0.00012876,2]
[327035809,1715728234444,-4065.11,0.00012876,2]
[327035810,1715728234453,-4065.11,0.00012876,2]
[327035811,1715728234462,-500.0,0.00012876,2]
[327035812,1715728234471,-500.0,0.00012876,2]
[327035813,1715728234480,-194.75,0.00012876,2]
[327035814,1715728234490,-552.28,0.00012876,2]
[327035815,1715728234499,-552.28,0.00012876,2]
[327035816,1715728234508,-288.86,0.00012876,2]
[327035817,1715728234517,-500.0,0.00012876,2]
[327035818,1715728234527,-958.28,0.00012876,2]
[327035819,1715728234536,-6122.11,0.00012876,2]
[327035820,1715728234545,-958.28,0.00012876,2]
[327035821,1715728234555,-6122.11,0.00012876,2]
[327035822,1715728234564,-958.28,0.00012876,2]
[327035823,1715728234573,-500.0,0.00012876,2]
[327035824,1715728234583,-500.0,0.00012876,2]
[327035825,1715728234592,-500.0,0.00012876,2]
[327035826,1715728234601,-629.03,0.00012876,2]
[327035827,1715728234611,-1703.94,0.00012876,2]
[327035828,1715728234620,-1703.94,0.00012876,2]
[327035829,1715728234629,-500.0,0.00012876,2]
[327035830,1715728234647,-500.0,0.00012876,2]
[327035831,1715728234659,-512.17,0.00012876,2]
[327035832,1715728234670,-500.0,0.00012876,2]
[327035833,1715728234680,-500.0,0.00012876,2]
[327035834,1715728234689,-533.87,0.00012876,2]
[327035835,1715728234699,-500.0,0.00012876,2]
[327035836,1715728234710,-500.0,0.00012876,2]
[327035837,1715728234719,-500.0,0.00012876,2]
[327035838,1715728234728,-500.0,0.00012876,2]
[327035839,1715728234738,-978.63,0.00012876,2]
[327035840,1715728234750,-978.63,0.00012876,2]
[327035841,1715728234759,-500.0,0.00012876,2]
[327035842,1715728234769,-500.0,0.00012876,2]
[327035843,1715728234780,-500.0,0.00012876,2]
[327035844,1715728234790,-500.0,0.00012876,2]
[327035845,1715728234801,-500.0,0.00012876,2]
[327035846,1715728234811,-500.0,0.00012876,2]
[327035847,1715728234822,-941.51,0.00012876,2]
[327035848,1715728234832,-2712.75,0.00012876,2]
[327035849,1715728234843,-2712.75,0.00012876,2]
[327035850,1715728234854,-2712.75,0.00012876,2]
[327035851,1715728234864,-500.0,0.00012876,2]
[327035852,1715728234873,-26963.49,0.00012876,2]
[327035853,1715728234883,-16204.26,0.00012876,2]
[327035854,1715728234895,-16204.26,0.00012876,2]
[327035855,1715728234905,-16204.26,0.00012876,2]
[327035856,1715728234916,-500.0,0.00012876,2]
[327035857,1715728234926,-554.53,0.00012876,2]
[327035858,1715728234936,-554.53,0.00012876,2]
[327035859,1715728234946,-554.53,0.00012876,2]
[327035860,1715728234956,-500.0,0.00012876,2]
[327035861,1715728234965,-500.0,0.00012876,2]
[327035862,1715728234975,-1457.66,0.00012876,2]
[327035863,1715728234985,-1457.66,0.00012876,2]
[327035864,1715728234994,-500.0,0.00012876,2]
[327035865,1715728235003,-500.0,0.00012876,2]
[327035866,1715728235013,-500.0,0.00012876,2]
[327035867,1715728235023,-500.0,0.00012876,2]
[327035868,1715728235032,-500.0,0.00012876,2]
[327035869,1715728235042,-3146.55,0.00012876,2]
[327035870,1715728235052,-1430.61,0.00012876,2]
[327035871,1715728235061,-1430.61,0.00012876,2]
[327035872,1715728235071,-1430.61,0.00012876,2]
[327035873,1715728235081,-1002.77,0.00012876,2]
[327035874,1715728235090,-208.5384714,0.00012876,2]
[327035875,1715728235100,-1002.77,0.00012876,2]
[327035876,1715728235110,-1002.77,0.00012876,2]
[327035877,1715728235120,-500.0,0.00012876,2]
[327035878,1715728235129,-500.0,0.00012876,2]
[327035879,1715728235139,-500.0,0.00012876,2]
[327035880,1715728235148,-500.0,0.00012876,2]
[327035881,1715728235158,-394.63,0.00012876,2]
[327035882,1715728235167,-500.0,0.00012876,2]
[327035883,1715728235177,-500.0,0.00012876,2]
[327035884,1715728235187,-1810.37,0.00012876,2]
[327035885,1715728235198,-1810.37,0.00012876,2]
[327035886,1715728235208,-1810.37,0.00012876,2]
[327035887,1715728235217,-500.0,0.00012876,2]
[327035888,1715728235227,-500.0,0.00012876,2]
[327035889,1715728235236,-500.0,0.00012876,2]
[327035890,1715728235246,-3156.28,0.00012876,2]
[327035891,1715728235256,-3156.28,0.00012876,2]
[327035892,1715728235265,-3156.28,0.00012876,2]
[327035893,1715728235275,-500.0,0.00012876,2]
[327035894,1715728235284,-500.0,0.00012876,2]
[327035895,1715728235293,-500.0,0.00012876,2]
[327035896,1715728235304,-1591.24,0.00012876,2]
[327035897,1715728235313,-1591.24,0.00012876,2]
[327035898,1715728235323,-1591.24,0.00012876,2]
[327035899,1715728235332,-500.0,0.00012876,2]
[327035900,1715728235341,-500.0,0.00012876,2]
[327035901,1715728235351,-500.0,0.00012876,2]
[327035902,1715728235361,-448.86,0.00012876,2]
[327035903,1715728235371,-500.0,0.00012876,2]
[327035904,1715728235380,-500.0,0.00012876,2]
[327035905,1715728235389,-500.0,0.00012876,2]
[327035906,1715728235399,-500.0,0.00012876,2]
[327035907,1715728235408,-500.0,0.00012876,2]
[327035908,1715728235417,-797.14,0.00012876,2]
[327035909,1715728235427,-797.14,0.00012876,2]
[327035910,1715728235436,-797.14,0.00012876,2]
[327035911,1715728235446,-1529.24,0.00012876,2]
[327035912,1715728235456,-1529.24,0.00012876,2]
[327035913,1715728235466,-1529.24,0.00012876,2]
[327035914,1715728235475,-241.38,0.00012876,2]
[327035915,1715728235485,-1517.21,0.00012876,2]
[327035916,1715728235494,-1517.21,0.00012876,2]
[327035917,1715728235504,-500.0,0.00012876,2]
[327035918,1715728235513,-500.0,0.00012876,2]
[327035919,1715728235524,-500.0,0.00012876,2]
[327035920,1715728235537,-745.43,0.00012876,2]
[327035921,1715728235547,-745.43,0.00012876,2]
[327035922,1715728235558,-500.0,0.00012876,2]
[327035923,1715728235567,-745.43,0.00012876,2]
[327035924,1715728235577,-500.0,0.00012876,2]
[327035925,1715728235587,-500.0,0.00012876,2]
[327035926,1715728235597,-1989.56,0.00012876,2]
[327035927,1715728235607,-500.0,0.00012876,2]
[327035928,1715728235617,-1989.56,0.00012876,2]
[327035929,1715728235627,-500.0,0.00012876,2]
[327035930,1715728235637,-1989.56,0.00012876,2]
[327035931,1715728235647,-500.0,0.00012876,2]
[327035932,1715728235656,-2028.14,0.00012876,2]
[327035933,1715728235672,-2028.14,0.00012876,2]
[327035934,1715728235681,-500.0,0.00012876,2]
[327035935,1715728235691,-500.0,0.00012876,2]
[327035936,1715728235701,-2028.14,0.00012876,2]
[327035937,1715728235711,-500.0,0.00012876,2]
[327035938,1715728235721,-218.02,0.00012876,2]
[327035939,1715728235730,-647.53,0.00012876,2]
[327035940,1715728235741,-1358.81,0.00012876,2]
[327035941,1715728235751,-1358.81,0.00012876,2]
[327035942,1715728235761,-909.52,0.00012876,2]
[327035943,1715728235771,-909.52,0.00012876,2]
[327035944,1715728235780,-909.52,0.00012876,2]
[327035945,1715728235790,-500.0,0.00012876,2]
[327035946,1715728235800,-500.0,0.00012876,2]
[327035947,1715728235811,-500.0,0.00012876,2]
[327035948,1715728235820,-612.82,0.00012876,2]
[327035949,1715728235830,-233.88502614,0.00012876,2]
[327035950,1715728235840,-500.0,0.00012876,2]
[327035951,1715728235850,-500.0,0.00012876,2]
[327035952,1715728235860,-500.0,0.00012876,2]
[327035953,1715728235870,-1228.63,0.00012876,2]
[327035954,1715728235879,-1228.63,0.00012876,2]
[327035955,1715728235888,-1228.63,0.00012876,2]
[327035956,1715728235898,-500.0,0.00012876,2]
[327035957,1715728235908,-500.0,0.00012876,2]
[327035958,1715728235918,-500.0,0.00012876,2]
[327035959,1715728235928,-310.69,0.00012876,2]
[327035960,1715728235938,-500.0,0.00012876,2]
[327035961,1715728235948,-500.0,0.00012876,2]
[327035962,1715728235959,-1123.54,0.00012876,2]
[327035963,1715728235969,-1123.54,0.00012876,2]
[327035964,1715728235979,-1665.14,0.00012876,2]
[327035965,1715728235989,-1665.14,0.00012876,2]
[327035966,1715728235999,-1665.14,0.00012876,2]
[327035967,1715728236009,-500.0,0.00012876,2]
[327035968,1715728236019,-500.0,0.00012876,2]
[327035969,1715728236029,-500.0,0.00012876,2]
[327035970,1715728236039,-500.0,0.00012876,2]
[327035971,1715728236048,-500.0,0.00012876,2]
[327035972,1715728236059,-500.0,0.00012876,2]
[327035973,1715728236070,-500.0,0.00012876,2]
[327035974,1715728236080,-171.28,0.00012876,2]
[327035975,1715728236090,-761.35,0.00012876,2]
[327035976,1715728236100,-761.35,0.00012876,2]
[327035977,1715728236109,-761.35,0.00012876,2]
[327035978,1715728236119,-2990.62,0.00012876,2]
[327035979,1715728236129,-500.0,0.00012876,2]
[327035980,1715728236138,-2990.62,0.00012876,2]
[327035981,1715728236148,-500.0,0.00012876,2]
[327035982,1715728236158,-1031.71,0.00012876,2]
[327035983,1715728236168,-1031.71,0.00012876,2]
[327035984,1715728236178,-500.0,0.00012876,2]
[327035985,1715728236188,-500.0,0.00012876,2]
[327035986,1715728236198,-500.0,0.00012876,2]
[327035987,1715728236208,-3179.12,0.00012876,2]
[327035988,1715728236218,-500.0,0.00012876,2]
[327035989,1715728236228,-3179.12,0.00012876,2]
[327035990,1715728236238,-500.0,0.00012876,2]
[327035991,1715728236248,-3179.12,0.00012876,2]
[327035992,1715728236257,-500.0,0.00012876,2]
[327035993,1715728236268,-156.52,0.00012876,2]
[327035994,1715728236277,-2707.21,0.00012876,2]
[327035995,1715728236287,-2707.21,0.00012876,2]
[327035996,1715728236296,-2707.21,0.00012876,2]
[327035997,1715728236308,-1821.73,0.00012876,2]
[327035999,1715728236318,-1821.73,0.00012876,2]
[327036000,1715728236328,-500.0,0.00012876,2]
[327036001,1715728236338,-500.0,0.00012876,2]
[327036002,1715728236348,-500.0,0.00012876,2]
[327036003,1715728236358,-500.0,0.00012876,2]
[327036004,1715728236367,-500.0,0.00012876,2]
[327036005,1715728236377,-500.0,0.00012876,2]
[327036006,1715728236387,-4644.39,0.00012876,2]
[327036007,1715728236396,-500.0,0.00012876,2]
[327036008,1715728236407,-4644.39,0.00012876,2]
[327036009,1715728236416,-500.0,0.00012876,2]
[327036010,1715728236426,-897.81,0.00012876,2]
[327036011,1715728236435,-897.81,0.00012876,2]
[327036012,1715728236445,-897.81,0.00012876,2]
[327036013,1715728236455,-1017.04,0.00012876,2]
[327036014,1715728236464,-1017.04,0.00012876,2]
[327036015,1715728236474,-1446.35,0.00012876,2]
[327036016,1715728236484,-500.0,0.00012876,2]
[327036017,1715728236493,-500.0,0.00012876,2]
[327036018,1715728236502,-500.0,0.00012876,2]
[327036019,1715728236511,-1341.54,0.00012876,2]
[327036020,1715728236521,-1341.54,0.00012876,2]
[327036021,1715728236531,-1735.32,0.00012876,2]
[327036022,1715728236541,-1735.32,0.00012876,2]
[327036023,1715728236551,-1735.32,0.00012876,2]
[327036024,1715728236561,-500.0,0.00012876,2]
[327036025,1715728236571,-500.0,0.00012876,2]
[327036026,1715728236581,-500.0,0.00012876,2]
[327036027,1715728236591,-727.64,0.00012876,2]
[327036028,1715728236601,-500.0,0.00012876,2]
[327036029,1715728236611,-727.64,0.00012876,2]
[327036030,1715728236620,-500.0,0.00012876,2]
[327036031,1715728236630,-727.64,0.00012876,2]
[327036032,1715728236639,-500.0,0.00012876,2]
[327036033,1715728236649,-500.0,0.00012876,2]
[327036034,1715728236659,-500.0,0.00012876,2]
[327036035,1715728236671,-432.65,0.00012876,2]
[327036036,1715728236680,-4846.34,0.00012876,2]
[327036037,1715728236689,-4846.34,0.00012876,2]
[327036038,1715728236699,-4846.34,0.00012876,2]
[327036039,1715728236709,-2322.2,0.00012876,2]
[327036040,1715728236718,-2322.2,0.00012876,2]
[327036041,1715728236728,-1582.2,0.00012876,2]
[327036042,1715728236737,-500.0,0.00012876,2]
[327036043,1715728236748,-500.0,0.00012876,2]
[327036044,1715728236758,-2221.34,0.00012876,2]
[327036045,1715728236767,-2221.34,0.00012876,2]
[327036046,1715728236777,-2221.34,0.00012876,2]
[327036047,1715728236786,-500.0,0.00012876,2]
[327036048,1715728236796,-500.0,0.00012876,2]
[327036049,1715728236806,-500.0,0.00012876,2]
[327036050,1715728236817,-500.0,0.00012876,2]
[327036051,1715728236827,-500.0,0.00012876,2]
[327036052,1715728236836,-1122.72,0.00012876,2]
[327036053,1715728236846,-4260.11,0.00012876,2]
[327036054,1715728236855,-4260.11,0.00012876,2]
[327036055,1715728236865,-500.0,0.00012876,2]
[327036056,1715728236874,-500.0,0.00012876,2]
[327036057,1715728236884,-1016.7,0.00012876,2]
[327036058,1715728236893,-1016.7,0.00012876,2]
[327036059,1715728236903,-3464.13,0.00012876,2]
[327036060,1715728236913,-1016.7,0.00012876,2]
[327036061,1715728236922,-3464.13,0.00012876,2]
[327036062,1715728236932,-1500.93,0.00012876,2]
[327036063,1715728236941,-3464.13,0.00012876,2]
[327036064,1715728236951,-1500.93,0.00012876,2]